[Event "Late-Titled-Tuesday-Blitz-March-12-2024"]
[Site "Chess.com"]
[Date "2024.03.12"]
[Round "2"]
[White "ChessBrainiacOnTwitch"]
[Black "Chessbard1972"]
[Result "1-0"]
[WhiteElo "2772"]
[BlackElo "2440"]
[TimeControl "180+1"]
[EndTime "14:16:42 PDT"]
[Termination "ChessBrainiacOnTwitch won on time"]

1. Nf3 {[%clk 0:02:49.9]} 1... Nf6 {[%clk 0:02:58.9]} 2. b3 {[%clk 0:02:49.6]}
2... g6 {[%clk 0:02:57.8]} 3. Bb2 {[%clk 0:02:50.5]} 3... Bg7 {[%clk 0:02:58.1]}
4. e3 {[%clk 0:02:50.5]} 4... O-O {[%clk 0:02:59]} 5. c4 {[%clk 0:02:44.4]} 5...
c5 {[%clk 0:02:57.5]} 6. Nc3 {[%clk 0:02:43.9]} 6... d5 {[%clk 0:02:55.9]} 7.
cxd5 {[%clk 0:02:42.3]} 7... Nxd5 {[%clk 0:02:55.7]} 8. Rc1 {[%clk 0:02:42.7]}
8... b6 {[%clk 0:02:52.6]} 9. Qc2 {[%clk 0:02:39.2]} 9... Nb4 {[%clk 0:02:44.2]}
10. Qb1 {[%clk 0:02:33.9]} 10... Bf5 {[%clk 0:02:43.1]} 11. e4 {[%clk
0:02:23.2]} 11... Bg4 {[%clk 0:02:42.9]} 12. a3 {[%clk 0:02:08.9]} 12... N4c6
{[%clk 0:02:39.3]} 13. Be2 {[%clk 0:02:06.4]} 13... Bxf3 {[%clk 0:02:35.9]} 14.
Bxf3 {[%clk 0:02:06.6]} 14... Nd4 {[%clk 0:02:36.2]} 15. Bd1 {[%clk 0:02:05.6]}
15... Nbc6 {[%clk 0:02:34.7]} 16. O-O {[%clk 0:02:05.7]} 16... e6 {[%clk
0:02:29.8]} 17. f4 {[%clk 0:01:58.2]} 17... f5 {[%clk 0:02:02.3]} 18. e5 {[%clk
0:01:55.6]} 18... Na5 {[%clk 0:01:55.3]} 19. Qa2 {[%clk 0:01:42.1]} 19... Qd7
{[%clk 0:01:39.3]} 20. b4 {[%clk 0:01:40.3]} 20... Nb7 {[%clk 0:01:36.7]} 21.
Ne2 {[%clk 0:01:19.5]} 21... Rfe8 {[%clk 0:01:00.6]} 22. Nxd4 {[%clk 0:01:16]}
22... cxd4 {[%clk 0:01:00.2]} 23. Bf3 {[%clk 0:01:06.8]} 23... Rac8 {[%clk
0:00:49.6]} 24. Qb3 {[%clk 0:01:06.2]} 24... a5 {[%clk 0:00:42.2]} 25. Qd3
{[%clk 0:01:04.6]} 25... g5 {[%clk 0:00:21.9]} 26. Qa6 {[%clk 0:00:59.2]} 26...
Rb8 {[%clk 0:00:14]} 27. Bc6 {[%clk 0:00:56.9]} 27... Qe7 {[%clk 0:00:13.1]} 28.
Bxe8 {[%clk 0:00:56.3]} 28... Qxe8 {[%clk 0:00:12.7]} 29. Bxd4 {[%clk
0:00:50.5]} 29... Qd7 {[%clk 0:00:11.9]} 30. Be3 {[%clk 0:00:48.9]} 30... axb4
{[%clk 0:00:11.4]} 31. axb4 {[%clk 0:00:48.8]} 31... gxf4 {[%clk 0:00:08.7]} 32.
Bxf4 {[%clk 0:00:48.7]} 32... Bf8 {[%clk 0:00:06.9]} 33. Qxb6 {[%clk 0:00:45.7]}
33... Nd6 {[%clk 0:00:04.1]} 34. Qxb8 {[%clk 0:00:44.3]} 34... Ne4 {[%clk
0:00:04.1]} 35. Be3 {[%clk 0:00:40]} 35... f4 {[%clk 0:00:01.9]} 36. Rxf4 {[%clk
0:00:38.4]} 1-0

[Event "Late-Titled-Tuesday-Blitz-March-12-2024"]
[Site "Chess.com"]
[Date "2024.03.12"]
[Round "2"]
[White "The_Machine04"]
[Black "crazyluzhinTh3"]
[Result "1-0"]
[WhiteElo "2813"]
[BlackElo "2570"]
[TimeControl "180+1"]
[EndTime "14:16:43 PDT"]
[Termination "The_Machine04 won by resignation"]

1. d4 {[%clk 0:03:00.9]} 1... d6 {[%clk 0:03:00.1]} 2. Nf3 {[%clk 0:03:00.3]}
2... Bg4 {[%clk 0:03:00.1]} 3. Nbd2 {[%clk 0:02:58.6]} 3... Nd7 {[%clk 0:03:00]}
4. e4 {[%clk 0:02:55.8]} 4... Ngf6 {[%clk 0:03:00.2]} 5. Bd3 {[%clk 0:02:53.5]}
5... e5 {[%clk 0:03:00.3]} 6. c3 {[%clk 0:02:53.3]} 6... c6 {[%clk 0:03:00.5]}
7. h3 {[%clk 0:02:53.4]} 7... Bh5 {[%clk 0:03:00.3]} 8. Nf1 {[%clk 0:02:52.6]}
8... Be7 {[%clk 0:02:58]} 9. Ng3 {[%clk 0:02:52.5]} 9... Bg6 {[%clk 0:02:58.6]}
10. O-O {[%clk 0:02:52.2]} 10... O-O {[%clk 0:02:58.5]} 11. Qe2 {[%clk
0:02:50.9]} 11... Re8 {[%clk 0:02:58.6]} 12. Rd1 {[%clk 0:02:49.9]} 12... Qc7
{[%clk 0:02:57.9]} 13. dxe5 {[%clk 0:02:49.6]} 13... dxe5 {[%clk 0:02:57.1]} 14.
Nh4 {[%clk 0:02:48]} 14... Nc5 {[%clk 0:02:53.7]} 15. Nxg6 {[%clk 0:02:43.9]}
15... hxg6 {[%clk 0:02:52.8]} 16. Bc2 {[%clk 0:02:43.8]} 16... Ne6 {[%clk
0:02:48]} 17. Be3 {[%clk 0:02:43]} 17... Bc5 {[%clk 0:02:44.5]} 18. b4 {[%clk
0:02:39.3]} 18... Bb6 {[%clk 0:02:40.8]} 19. Bb3 {[%clk 0:02:30.4]} 19... Nf4
{[%clk 0:02:38.1]} 20. Qf3 {[%clk 0:02:29]} 20... Rad8 {[%clk 0:02:35.4]} 21.
Ne2 {[%clk 0:02:21.3]} 21... Nxe2+ {[%clk 0:02:30.2]} 22. Qxe2 {[%clk
0:02:22.2]} 22... Nh5 {[%clk 0:02:27.7]} 23. Bg5 {[%clk 0:02:16.4]} 23... Rxd1+
{[%clk 0:02:17.9]} 24. Rxd1 {[%clk 0:02:17.3]} 24... Nf4 {[%clk 0:02:16.3]} 25.
Qg4 {[%clk 0:02:05.6]} 25... Bxf2+ {[%clk 0:01:01.1]} 26. Kxf2 {[%clk
0:01:55.7]} 26... Qb6+ {[%clk 0:01:02]} 27. Kg3 {[%clk 0:01:45.7]} 27... Qe3+
{[%clk 0:00:57.2]} 28. Kh2 {[%clk 0:01:45.6]} 28... Qxe4 {[%clk 0:00:40.6]} 29.
Rd7 {[%clk 0:01:41.9]} 29... Rf8 {[%clk 0:00:40.9]} 30. Rxb7 {[%clk 0:01:02.3]}
30... c5 {[%clk 0:00:33.1]} 31. Rxa7 {[%clk 0:01:00.5]} 31... c4 {[%clk
0:00:33.2]} 32. Bd1 {[%clk 0:00:58.4]} 32... Qd3 {[%clk 0:00:24.4]} 33. Bxf4
{[%clk 0:00:52.2]} 33... exf4 {[%clk 0:00:23.4]} 34. Qf3 {[%clk 0:00:52.2]}
34... Qd2 {[%clk 0:00:21.4]} 35. Ra8 {[%clk 0:00:50]} 35... Rxa8 {[%clk
0:00:20.4]} 36. Qxa8+ {[%clk 0:00:50.9]} 36... Kh7 {[%clk 0:00:21]} 37. Qf3
{[%clk 0:00:50]} 37... f5 {[%clk 0:00:19.4]} 38. a4 {[%clk 0:00:48.5]} 38... Kh6
{[%clk 0:00:14.4]} 39. a5 {[%clk 0:00:47.3]} 39... Kg5 {[%clk 0:00:14.6]} 40. a6
{[%clk 0:00:46.1]} 40... Qa2 {[%clk 0:00:14.4]} 41. b5 {[%clk 0:00:46.2]} 41...
Qb2 {[%clk 0:00:13.6]} 42. a7 {[%clk 0:00:45.2]} 42... Qa3 {[%clk 0:00:13.3]}
43. a8=Q {[%clk 0:00:45]} 43... Qa6 {[%clk 0:00:13.9]} 1-0

[Event "Late-Titled-Tuesday-Blitz-March-12-2024"]
[Site "Chess.com"]
[Date "2024.03.12"]
[Round "2"]
[White "Alphafischer2019"]
[Black "Qingdom"]
[Result "1-0"]
[WhiteElo "2743"]
[BlackElo "2284"]
[TimeControl "180+1"]
[EndTime "14:16:45 PDT"]
[Termination "Alphafischer2019 won by resignation"]

1. e4 {[%clk 0:03:00.9]} 1... c5 {[%clk 0:02:59.7]} 2. d3 {[%clk 0:02:59.7]}
2... Nc6 {[%clk 0:02:59.5]} 3. g3 {[%clk 0:02:59.5]} 3... Nf6 {[%clk 0:02:59.2]}
4. Bg2 {[%clk 0:02:59.9]} 4... d5 {[%clk 0:02:58.9]} 5. Nd2 {[%clk 0:02:54.1]}
5... dxe4 {[%clk 0:02:56.6]} 6. dxe4 {[%clk 0:02:55]} 6... e5 {[%clk 0:02:53.7]}
7. Ngf3 {[%clk 0:02:54.9]} 7... Be7 {[%clk 0:02:53.5]} 8. O-O {[%clk 0:02:54.7]}
8... O-O {[%clk 0:02:53.4]} 9. Nc4 {[%clk 0:02:52.3]} 9... Nd7 {[%clk
0:02:52.7]} 10. c3 {[%clk 0:02:36.9]} 10... b5 {[%clk 0:02:51.1]} 11. Nd6 {[%clk
0:02:36]} 11... Bxd6 {[%clk 0:02:44.5]} 12. Qxd6 {[%clk 0:02:36.8]} 12... Qb6
{[%clk 0:02:29.6]} 13. Be3 {[%clk 0:02:34.3]} 13... a5 {[%clk 0:02:22.8]} 14.
Rfd1 {[%clk 0:02:31.7]} 14... Re8 {[%clk 0:02:16.9]} 15. Bh3 {[%clk 0:02:31.1]}
15... Nf6 {[%clk 0:02:05.1]} 16. Bxc5 {[%clk 0:02:17.6]} 16... Qb7 {[%clk
0:02:03.9]} 17. Bg2 {[%clk 0:02:10.6]} 17... Bg4 {[%clk 0:02:00.7]} 18. Qd3
{[%clk 0:02:07.4]} 18... Rad8 {[%clk 0:01:54.3]} 19. Qe2 {[%clk 0:02:07.3]}
19... b4 {[%clk 0:01:53.1]} 20. h3 {[%clk 0:02:05.8]} 20... Bh5 {[%clk
0:01:48.3]} 21. g4 {[%clk 0:02:03]} 21... Bg6 {[%clk 0:01:48.3]} 22. Nh4 {[%clk
0:02:02.8]} 22... bxc3 {[%clk 0:01:45.7]} 23. bxc3 {[%clk 0:02:02.6]} 23... Nd7
{[%clk 0:01:24.7]} 24. Ba3 {[%clk 0:01:58.9]} 24... Nb6 {[%clk 0:01:20.1]} 25.
Nf5 {[%clk 0:01:57.7]} 25... Bxf5 {[%clk 0:01:15.9]} 26. exf5 {[%clk 0:01:57.6]}
26... Nc8 {[%clk 0:01:05]} 27. Qc4 {[%clk 0:01:50]} 27... N8a7 {[%clk
0:01:04.9]} 28. Bc5 {[%clk 0:01:43.7]} 28... Qc8 {[%clk 0:01:00.5]} 29. Be3
{[%clk 0:01:39.2]} 29... Ne7 {[%clk 0:00:50.3]} 30. Qxc8 {[%clk 0:01:34.9]}
30... Naxc8 {[%clk 0:00:50.1]} 31. Bc5 {[%clk 0:01:34.9]} 31... f6 {[%clk
0:00:40.8]} 32. Rxd8 {[%clk 0:01:33.2]} 32... Rxd8 {[%clk 0:00:40.5]} 33. Rb1
{[%clk 0:01:34.1]} 33... Kf7 {[%clk 0:00:37.9]} 34. Be4 {[%clk 0:01:31.4]} 34...
Nd6 {[%clk 0:00:33.7]} 35. Bxd6 {[%clk 0:01:28.1]} 35... Rxd6 {[%clk 0:00:33.8]}
36. Rb5 {[%clk 0:01:26.5]} 36... Rd1+ {[%clk 0:00:25.9]} 37. Kg2 {[%clk
0:01:26.5]} 37... Rc1 {[%clk 0:00:26.3]} 38. Rc5 {[%clk 0:01:22.9]} 38... a4
{[%clk 0:00:25.3]} 39. Rc7 {[%clk 0:01:21.3]} 39... Ke8 {[%clk 0:00:24.8]} 40.
Ra7 {[%clk 0:01:06.4]} 40... a3 {[%clk 0:00:23.4]} 41. Rxa3 {[%clk 0:01:06.2]}
41... Kd7 {[%clk 0:00:22.3]} 42. Ra7+ {[%clk 0:01:04.3]} 42... Kd6 {[%clk
0:00:22.2]} 43. a4 {[%clk 0:01:00.4]} 43... Ra1 {[%clk 0:00:20.5]} 44. a5 {[%clk
0:01:00.8]} 44... g6 {[%clk 0:00:18]} 45. a6 {[%clk 0:01:00.9]} 45... gxf5
{[%clk 0:00:17.9]} 46. gxf5 {[%clk 0:01:01.8]} 46... h5 {[%clk 0:00:17.1]} 47.
Ra8 {[%clk 0:00:59.1]} 47... Nd5 {[%clk 0:00:16.3]} 48. Rd8+ {[%clk 0:00:58.8]}
48... Kc5 {[%clk 0:00:15.8]} 49. Rxd5+ {[%clk 0:00:59]} 1-0

[Event "Late-Titled-Tuesday-Blitz-March-12-2024"]
[Site "Chess.com"]
[Date "2024.03.12"]
[Round "2"]
[White "Grischuk"]
[Black "ansko1999"]
[Result "1-0"]
[WhiteElo "3071"]
[BlackElo "2701"]
[TimeControl "180+1"]
[EndTime "14:16:50 PDT"]
[Termination "Grischuk won on time"]

1. d4 {[%clk 0:03:00.9]} 1... Nf6 {[%clk 0:02:59.5]} 2. c4 {[%clk 0:03:00.9]}
2... e6 {[%clk 0:02:59.3]} 3. Bg5 {[%clk 0:03:00.7]} 3... Bb4+ {[%clk
0:02:46.2]} 4. Nd2 {[%clk 0:03:00.1]} 4... h6 {[%clk 0:02:40.6]} 5. Bh4 {[%clk
0:02:59.6]} 5... d5 {[%clk 0:02:33.8]} 6. e3 {[%clk 0:02:39.7]} 6... c5 {[%clk
0:02:15.5]} 7. dxc5 {[%clk 0:02:28.2]} 7... g5 {[%clk 0:01:59.8]} 8. Bg3 {[%clk
0:02:27.7]} 8... Ne4 {[%clk 0:01:59.8]} 9. Nf3 {[%clk 0:02:27.5]} 9... g4 {[%clk
0:01:54.3]} 10. a3 {[%clk 0:02:24.4]} 10... Bxc5 {[%clk 0:01:36.6]} 11. Nxe4
{[%clk 0:02:12.4]} 11... dxe4 {[%clk 0:01:30.6]} 12. Qxd8+ {[%clk 0:02:13.3]}
12... Kxd8 {[%clk 0:01:30.9]} 13. Ne5 {[%clk 0:02:13.9]} 13... Ke8 {[%clk
0:01:05.8]} 14. Nxg4 {[%clk 0:01:38.7]} 14... Nd7 {[%clk 0:00:32.3]} 15. Ne5
{[%clk 0:01:36]} 15... Nb6 {[%clk 0:00:18.1]} 16. b4 {[%clk 0:01:23.7]} 16...
Be7 {[%clk 0:00:18.1]} 17. c5 {[%clk 0:01:19.8]} 17... Nd5 {[%clk 0:00:17.9]}
18. Bb5+ {[%clk 0:01:20.5]} 18... Kf8 {[%clk 0:00:16.9]} 19. O-O {[%clk
0:01:19.5]} 19... Rg8 {[%clk 0:00:14.1]} 20. Rfc1 {[%clk 0:01:00.1]} 20... a6
{[%clk 0:00:12.9]} 21. Bf1 {[%clk 0:00:53.1]} 21... Bf6 {[%clk 0:00:10.3]} 22.
Nc4 {[%clk 0:00:52.9]} 22... Bxa1 {[%clk 0:00:09]} 23. Rxa1 {[%clk 0:00:53.8]}
23... Bd7 {[%clk 0:00:07.5]} 24. Nd6 {[%clk 0:00:46.6]} 24... Bc6 {[%clk
0:00:07.3]} 25. Be2 {[%clk 0:00:43.2]} 25... Ke7 {[%clk 0:00:06.5]} 26. Nxe4
{[%clk 0:00:29.1]} 26... f6 {[%clk 0:00:02.5]} 27. Nd6 {[%clk 0:00:25.2]} 27...
e5 {[%clk 0:00:02.5]} 28. Bc4 {[%clk 0:00:24.2]} 28... Rgd8 {[%clk 0:00:01.3]}
29. h3 {[%clk 0:00:19.5]} 1-0

[Event "Late-Titled-Tuesday-Blitz-March-12-2024"]
[Site "Chess.com"]
[Date "2024.03.12"]
[Round "2"]
[White "shirovin"]
[Black "The_Straightforward_Rook"]
[Result "0-1"]
[WhiteElo "2055"]
[BlackElo "2460"]
[TimeControl "180+1"]
[EndTime "14:16:50 PDT"]
[Termination "The_Straightforward_Rook won on time"]

1. e4 {[%clk 0:03:00.9]} 1... c6 {[%clk 0:02:55.7]} 2. d4 {[%clk 0:03:01]} 2...
d5 {[%clk 0:02:56.3]} 3. exd5 {[%clk 0:03:01.6]} 3... cxd5 {[%clk 0:02:57.1]} 4.
Bd3 {[%clk 0:03:01.3]} 4... Nc6 {[%clk 0:02:56.3]} 5. c3 {[%clk 0:03:01.9]} 5...
Qc7 {[%clk 0:02:56.6]} 6. Ne2 {[%clk 0:02:59.4]} 6... e5 {[%clk 0:02:55.2]} 7.
dxe5 {[%clk 0:02:57.9]} 7... Nxe5 {[%clk 0:02:56.1]} 8. Bb5+ {[%clk 0:02:39.2]}
8... Bd7 {[%clk 0:02:53.1]} 9. Bxd7+ {[%clk 0:02:24.1]} 9... Qxd7 {[%clk
0:02:49.2]} 10. Bf4 {[%clk 0:02:15.8]} 10... Ng6 {[%clk 0:02:47.1]} 11. Bg3
{[%clk 0:02:13.5]} 11... Nf6 {[%clk 0:02:45.7]} 12. O-O {[%clk 0:02:11.2]} 12...
Bc5 {[%clk 0:02:41.2]} 13. Re1 {[%clk 0:02:09.2]} 13... O-O {[%clk 0:02:41.1]}
14. Nd4 {[%clk 0:02:08.4]} 14... Ne4 {[%clk 0:02:37.3]} 15. Nd2 {[%clk
0:02:05.6]} 15... Bxd4 {[%clk 0:02:34.1]} 16. Nxe4 {[%clk 0:01:47.4]} 16... dxe4
{[%clk 0:02:31.8]} 17. Qxd4 {[%clk 0:01:46.1]} 17... Qxd4 {[%clk 0:02:31.3]} 18.
cxd4 {[%clk 0:01:46.7]} 18... f5 {[%clk 0:02:31.5]} 19. Bd6 {[%clk 0:01:44.4]}
19... Rfd8 {[%clk 0:02:30.4]} 20. Be5 {[%clk 0:01:33.5]} 20... Rd5 {[%clk
0:02:13.2]} 21. f4 {[%clk 0:01:17.3]} 21... Nxe5 {[%clk 0:01:56.4]} 22. dxe5
{[%clk 0:01:15.9]} 22... Rd2 {[%clk 0:01:54.2]} 23. Red1 {[%clk 0:01:08.2]}
23... Rad8 {[%clk 0:01:51.3]} 24. Rxd2 {[%clk 0:01:01.7]} 24... Rxd2 {[%clk
0:01:52.2]} 25. Rb1 {[%clk 0:01:01.4]} 25... Kf7 {[%clk 0:01:51.7]} 26. h3
{[%clk 0:00:57]} 26... Ke6 {[%clk 0:01:49.5]} 27. g4 {[%clk 0:00:52.6]} 27... g6
{[%clk 0:01:42.7]} 28. a3 {[%clk 0:00:47.5]} 28... h5 {[%clk 0:01:36]} 29. gxh5
{[%clk 0:00:40.1]} 29... gxh5 {[%clk 0:01:36.3]} 30. b4 {[%clk 0:00:39.5]} 30...
Rd3 {[%clk 0:01:35.4]} 31. Kg2 {[%clk 0:00:33.2]} 31... Rxa3 {[%clk 0:01:34]}
32. Rd1 {[%clk 0:00:33.7]} 32... Rb3 {[%clk 0:01:31.2]} 33. Rd6+ {[%clk
0:00:31.6]} 33... Ke7 {[%clk 0:01:30.6]} 34. Rd4 {[%clk 0:00:24.7]} 34... h4
{[%clk 0:01:29.6]} 35. Rc4 {[%clk 0:00:19.4]} 35... Kd7 {[%clk 0:01:26.4]} 36.
Rd4+ {[%clk 0:00:18.5]} 36... Ke6 {[%clk 0:01:24.6]} 37. Rd6+ {[%clk 0:00:17.8]}
37... Ke7 {[%clk 0:01:25]} 38. Rd4 {[%clk 0:00:17.5]} 38... Rg3+ {[%clk
0:01:23.7]} 39. Kh2 {[%clk 0:00:16.6]} 39... Rf3 {[%clk 0:01:24]} 40. Rc4 {[%clk
0:00:16.2]} 40... Kd7 {[%clk 0:01:23]} 41. Rd4+ {[%clk 0:00:15.1]} 41... Kc7
{[%clk 0:01:22.9]} 42. Rc4+ {[%clk 0:00:14.6]} 42... Kd7 {[%clk 0:01:20.1]} 43.
Rd4+ {[%clk 0:00:14]} 43... Ke7 {[%clk 0:01:20.8]} 44. Rc4 {[%clk 0:00:12.9]}
44... Rf2+ {[%clk 0:01:19.2]} 45. Kg1 {[%clk 0:00:12]} 45... Rxf4 {[%clk
0:01:19.3]} 46. Rc7+ {[%clk 0:00:10.2]} 46... Ke6 {[%clk 0:01:19.7]} 47. Rxb7
{[%clk 0:00:10.2]} 47... e3 {[%clk 0:01:19]} 48. Rc7 {[%clk 0:00:05.8]} 48...
Rxb4 {[%clk 0:01:17.8]} 49. Rc3 {[%clk 0:00:04.7]} 49... f4 {[%clk 0:01:17.2]}
50. Ra3 {[%clk 0:00:03]} 50... Kxe5 {[%clk 0:01:16.1]} 51. Rxa7 {[%clk
0:00:02.1]} 51... Ke4 {[%clk 0:01:16.4]} 0-1

[Event "Late-Titled-Tuesday-Blitz-March-12-2024"]
[Site "Chess.com"]
[Date "2024.03.12"]
[Round "2"]
[White "Meri-Arabidze"]
[Black "GHANDEEVAM2003"]
[Result "0-1"]
[WhiteElo "2704"]
[BlackElo "3092"]
[TimeControl "180+1"]
[EndTime "14:16:52 PDT"]
[Termination "GHANDEEVAM2003 won by resignation"]

1. d4 {[%clk 0:03:00.9]} 1... g6 {[%clk 0:02:57.3]} 2. c4 {[%clk 0:03:01.2]}
2... Bg7 {[%clk 0:02:57.2]} 3. g3 {[%clk 0:03:01.6]} 3... Nc6 {[%clk 0:02:57.6]}
4. Nf3 {[%clk 0:03:00.5]} 4... e5 {[%clk 0:02:56.9]} 5. d5 {[%clk 0:03:00.4]}
5... Na5 {[%clk 0:02:54.7]} 6. e4 {[%clk 0:02:57.9]} 6... c5 {[%clk 0:02:51.2]}
7. Nc3 {[%clk 0:02:47.4]} 7... d6 {[%clk 0:02:49]} 8. b3 {[%clk 0:02:47.4]} 8...
f5 {[%clk 0:02:47.8]} 9. Bg2 {[%clk 0:02:46.8]} 9... Nf6 {[%clk 0:02:43.4]} 10.
O-O {[%clk 0:02:46.6]} 10... O-O {[%clk 0:02:41.2]} 11. Ng5 {[%clk 0:02:39.4]}
11... Qe7 {[%clk 0:02:32.8]} 12. exf5 {[%clk 0:02:17]} 12... Bxf5 {[%clk
0:02:29.6]} 13. h3 {[%clk 0:02:00.6]} 13... Kh8 {[%clk 0:02:28.6]} 14. Bd2
{[%clk 0:01:52.8]} 14... b6 {[%clk 0:02:25]} 15. Qe2 {[%clk 0:01:52]} 15... Rae8
{[%clk 0:02:23.7]} 16. Rae1 {[%clk 0:01:44]} 16... Nb7 {[%clk 0:02:22]} 17. g4
{[%clk 0:01:39.1]} 17... Bc8 {[%clk 0:02:20.4]} 18. f4 {[%clk 0:01:39.1]} 18...
Qd8 {[%clk 0:02:05.1]} 19. f5 {[%clk 0:01:38.2]} 19... gxf5 {[%clk 0:02:06]} 20.
gxf5 {[%clk 0:01:38.4]} 20... Qe7 {[%clk 0:02:03]} 21. Ne6 {[%clk 0:01:34.1]}
21... Rg8 {[%clk 0:02:03.3]} 22. Bg5 {[%clk 0:01:25.8]} 22... Qf7 {[%clk
0:01:55]} 23. Kh2 {[%clk 0:01:18.4]} 23... Nd8 {[%clk 0:01:52.2]} 24. Ne4 {[%clk
0:01:11.8]} 24... Nxe4 {[%clk 0:01:51.9]} 25. Qxe4 {[%clk 0:01:05.7]} 25... Bf6
{[%clk 0:01:51]} 26. Qh4 {[%clk 0:00:56.3]} 26... Rxg5 {[%clk 0:01:46.5]} 27.
Nxg5 {[%clk 0:00:57.2]} 27... Qe7 {[%clk 0:01:46.2]} 28. Qh5 {[%clk 0:00:37.2]}
28... Bxg5 {[%clk 0:01:34.3]} 29. f6 {[%clk 0:00:37.6]} 29... Bxf6 {[%clk
0:01:34.7]} 30. Rxf6 {[%clk 0:00:37.5]} 30... Rg8 {[%clk 0:01:35.1]} 31. Ref1
{[%clk 0:00:36.4]} 31... Qg7 {[%clk 0:01:34.6]} 32. Qf3 {[%clk 0:00:35.2]} 32...
e4 {[%clk 0:01:27.8]} 33. Qf2 {[%clk 0:00:17.4]} 33... e3 {[%clk 0:01:27.5]} 34.
Qf3 {[%clk 0:00:17.8]} 34... e2 {[%clk 0:01:18]} 35. Re1 {[%clk 0:00:16.4]}
35... Ne6 {[%clk 0:01:10.6]} 36. dxe6 {[%clk 0:00:11]} 36... Bb7 {[%clk
0:01:10.3]} 37. Qf2 {[%clk 0:00:01.5]} 37... Qxg2+ {[%clk 0:01:09]} 38. Qxg2
{[%clk 0:00:02]} 38... Rxg2+ {[%clk 0:01:09.9]} 39. Kh1 {[%clk 0:00:02.7]} 39...
Rg6+ {[%clk 0:01:07]} 40. Kh2 {[%clk 0:00:03.2]} 40... Rxf6 {[%clk 0:01:03.9]}
41. Rxe2 {[%clk 0:00:03.8]} 41... Bc6 {[%clk 0:01:03.8]} 42. e7 {[%clk 0:00:04]}
42... Be8 {[%clk 0:01:04.4]} 43. Kg3 {[%clk 0:00:04.2]} 43... Kg7 {[%clk
0:01:04.9]} 44. h4 {[%clk 0:00:04]} 44... Kf7 {[%clk 0:01:05.2]} 0-1

[Event "Late-Titled-Tuesday-Blitz-March-12-2024"]
[Site "Chess.com"]
[Date "2024.03.12"]
[Round "2"]
[White "SlavenPastar"]
[Black "alexrustemov"]
[Result "0-1"]
[WhiteElo "2585"]
[BlackElo "2858"]
[TimeControl "180+1"]
[EndTime "14:16:52 PDT"]
[Termination "alexrustemov won by resignation"]

1. b3 {[%clk 0:03:00.9]} 1... d5 {[%clk 0:02:59.3]} 2. Bb2 {[%clk 0:02:59.6]}
2... Bf5 {[%clk 0:02:59.5]} 3. Nf3 {[%clk 0:02:59.8]} 3... Nf6 {[%clk
0:02:59.7]} 4. Nh4 {[%clk 0:03:00]} 4... Bd7 {[%clk 0:02:55.6]} 5. Nf3 {[%clk
0:02:59.7]} 5... h6 {[%clk 0:02:53.5]} 6. e3 {[%clk 0:02:55.5]} 6... Bf5 {[%clk
0:02:52.9]} 7. Bd3 {[%clk 0:02:53.6]} 7... Bxd3 {[%clk 0:02:50.8]} 8. cxd3
{[%clk 0:02:54.5]} 8... e6 {[%clk 0:02:45.7]} 9. d4 {[%clk 0:02:53.6]} 9... Nbd7
{[%clk 0:02:42.1]} 10. Nc3 {[%clk 0:02:51.6]} 10... c6 {[%clk 0:02:35.7]} 11.
Qe2 {[%clk 0:02:48]} 11... Bd6 {[%clk 0:02:33.6]} 12. d3 {[%clk 0:02:47.5]}
12... Qe7 {[%clk 0:02:32.5]} 13. e4 {[%clk 0:02:46]} 13... Ba3 {[%clk
0:02:08.4]} 14. O-O {[%clk 0:02:24.3]} 14... O-O {[%clk 0:02:03.4]} 15. Rfe1
{[%clk 0:02:06.7]} 15... a5 {[%clk 0:01:54.2]} 16. exd5 {[%clk 0:01:48.4]} 16...
Nxd5 {[%clk 0:01:48.5]} 17. Ne5 {[%clk 0:01:33.4]} 17... Nxc3 {[%clk 0:01:43.4]}
18. Bxc3 {[%clk 0:01:32.8]} 18... Nf6 {[%clk 0:01:43.4]} 19. Qd2 {[%clk
0:01:02.3]} 19... Bb4 {[%clk 0:01:39.8]} 20. a3 {[%clk 0:00:47.7]} 20... Bxc3
{[%clk 0:01:38.7]} 21. Qxc3 {[%clk 0:00:48.6]} 21... Rfd8 {[%clk 0:01:38.2]} 22.
Qc5 {[%clk 0:00:44]} 22... Qc7 {[%clk 0:01:32.4]} 23. b4 {[%clk 0:00:37.8]}
23... Rd5 {[%clk 0:01:30.5]} 24. Qc4 {[%clk 0:00:32]} 24... Rad8 {[%clk
0:01:30]} 25. Nf3 {[%clk 0:00:31.5]} 25... Ne8 {[%clk 0:01:25.5]} 26. bxa5
{[%clk 0:00:30.1]} 26... Nd6 {[%clk 0:01:22.4]} 27. Qb4 {[%clk 0:00:21.6]} 27...
Qxa5 {[%clk 0:01:19.8]} 28. Rab1 {[%clk 0:00:18.7]} 28... Qxb4 {[%clk
0:01:07.4]} 29. Rxb4 {[%clk 0:00:19.6]} 29... Ra8 {[%clk 0:01:07.2]} 30. a4
{[%clk 0:00:19.7]} 30... Rda5 {[%clk 0:01:06.8]} 31. Ra1 {[%clk 0:00:13.6]}
31... f6 {[%clk 0:01:04.7]} 32. Nd2 {[%clk 0:00:08.7]} 32... b5 {[%clk
0:01:02.9]} 33. Rc1 {[%clk 0:00:07.8]} 33... Rxa4 {[%clk 0:01:01.9]} 34. Rxa4
{[%clk 0:00:06.5]} 34... bxa4 {[%clk 0:01:02.5]} 35. Rxc6 {[%clk 0:00:06.1]}
35... a3 {[%clk 0:00:59.6]} 36. Rc1 {[%clk 0:00:06.1]} 36... a2 {[%clk
0:00:57.8]} 37. Ra1 {[%clk 0:00:05.2]} 37... Nb5 {[%clk 0:00:57.2]} 38. Nb3
{[%clk 0:00:03.2]} 38... Nc3 {[%clk 0:00:55.8]} 39. Kf1 {[%clk 0:00:02.8]} 39...
Rb8 {[%clk 0:00:55.9]} 40. Nd2 {[%clk 0:00:01.3]} 40... Rb1+ {[%clk 0:00:55.5]}
41. Nxb1 {[%clk 0:00:01.9]} 41... axb1=Q+ {[%clk 0:00:55.7]} 42. Rxb1 {[%clk
0:00:02.5]} 42... Nxb1 {[%clk 0:00:56.3]} 43. Ke2 {[%clk 0:00:03.1]} 43... Nc3+
{[%clk 0:00:56.6]} 44. Kd2 {[%clk 0:00:03.8]} 44... Nd5 {[%clk 0:00:56.9]} 0-1